bitfinex-derivatives/quotes_ETHF0:USTF0_20250620
["timestamp","ask_amount","ask_price","bid_price","bid_amount"]
[1750378617720,0.791,2528.1,2528.0,0.79097]
[1750378617912,0.79096,2528.2,2528.1,0.79092]
[1750378618114,0.79091,2528.4,2528.3,0.79087]
[1750378618312,0.79091,2528.4,2528.3,3.99867]
[1750378618713,0.79091,2528.4,2528.3,7.16735481]
[1750378621025,0.86024781,2528.4,2528.3,7.16735481]
[1750378621216,0.06933781,2528.4,2528.3,7.16735481]
[1750378622931,0.86020781,2528.4,2528.3,7.16735481]
[1750378624833,0.86020781,2528.4,2528.3,3.8777]
[1750378625231,0.86020781,2528.4,2528.3,3.2078]
[1750378625942,2.14590781,2528.4,2528.3,3.2078]
[1750378626142,0.79094,2528.2,2528.1,3.91072481]
[1750378627338,0.79094,2528.2,2528.1,0.621]
[1750378627544,0.79094,2528.2,2528.1,1.41197]
[1750378628945,0.79094,2528.2,2528.1,0.621]
[1750378630242,0.79097,2528.1,2528.0,3.14294946]
[1750378630745,0.79097,2528.1,2528.0,0.791]
[1750378630937,0.791,2528.0,2527.9,10.30883427]
[1750378631134,0.791,2528.0,2527.9,6.35074946]
[1750378631347,0.791,2528.0,2527.9,7.14177946]
[1750378633243,0.791,2528.0,2527.9,6.35074946]
[1750378634235,0.791,2528.0,2527.9,3.2078]
[1750378634646,1.4663,2528.0,2527.9,3.2078]
[1750378634945,1.4663,2528.0,2527.9,3.99883]
[1750378635336,0.791,2528.0,2527.9,3.99883]
[1750378636348,0.79098,2528.1,2528.0,0.79099]
[1750378636538,0.79098,2528.1,2528.0,3.28977481]
[1750378636943,0.79098,2528.1,2528.0,2.49878481]
[1750378637243,0.79098,2528.1,2528.0,2.35444646]
[1750378637548,2.06868,2528.1,2528.0,2.35444646]
[1750378639453,2.06868,2528.1,2528.0,3.14543646]
[1750378639944,0.6753,2528.2,2528.1,0.79096]
[1750378640138,1.46623,2528.2,2528.1,3.14540646]
[1750378642545,1.46623,2528.2,2528.1,2.35444646]
[1750378642752,2.71183,2528.2,2528.1,2.35444646]
[1750378644955,0.79096,2528.1,2528.0,2.35444646]
[1750378645249,2.04756,2528.1,2528.0,2.35444646]
[1750378645454,2.11689781,2528.1,2528.0,2.35444646]
[1750378646551,2.04756,2528.1,2528.0,2.35444646]
[1750378646966,4.54634481,2528.1,2528.0,2.35444646]
[1750378647553,4.61568262,2528.1,2528.0,2.35444646]
[1750378648362,0.79099,2528.0,2527.9,2.35444646]
[1750378648548,2.09129,2528.0,2527.9,2.35444646]
[1750378649053,7.09129,2528.0,2527.9,2.35444646]
[1750378649247,0.79103,2527.9,2527.8,0.70472914]
[1750378649442,15.91109481,2527.9,2527.5,2.35444646]
[1750378649647,0.79112,2527.6,2527.5,2.35444646]
[1750378650257,0.79115,2527.5,2527.4,2.35444646]
[1750378650444,8.42135,2527.5,2527.4,2.35444646]
[1750378652562,0.79118,2527.4,2527.3,3.14564646]
[1750378652857,0.79121,2527.3,2527.2,3.93840481]
[1750378653160,0.79121,2527.3,2527.2,0.6484]
[1750378653364,0.79121,2527.3,2527.2,2.35373977]
[1750378653553,2.11511,2527.3,2527.2,2.35373977]
[1750378654759,0.79124,2527.2,2527.1,2.35373977]
[1750378654962,2.11514,2527.2,2527.1,2.35373977]
[1750378655154,0.79128,2527.1,2527.0,2.35373977]
[1750378655658,7.04728,2527.1,2527.0,2.35373977]
[1750378655863,7.04728,2527.1,2527.0,3.14504977]
[1750378656258,7.04728,2527.1,2527.0,2.35373977]
[1750378657465,7.0473,2527.1,2527.0,0.79131]
[1750378658365,0.79131,2527.0,2526.9,6.99835977]
[1750378662675,7.04729,2527.1,2527.0,0.79131]
[1750378663574,0.79131,2527.0,2526.9,6.99834977]
[1750378665576,7.0473,2527.1,2527.0,0.79131]
[1750378669378,3.99904,2527.3,2527.2,0.79124]
[1750378669579,0.79121,2527.3,2527.2,3.29002481]
[1750378670078,7.04821,2527.3,2527.2,3.29002481]
[1750378670269,6.257,2527.3,2527.2,3.29002481]
[1750378670468,9.7492,2527.7,2527.5,0.79112]
[1750378670679,7.04816,2527.6,2527.5,0.79112]
[1750378671270,0.79118,2527.4,2527.3,1.43326]
[1750378671581,0.79118,2527.4,2527.3,0.6421]
[1750378671880,0.79118,2527.4,2527.3,1.81714708]
[1750378672374,0.79118,2527.4,2527.3,0.6421]
[1750378673084,0.79118,2527.4,2527.3,2.60867723]
[1750378673278,0.79118,2527.4,2527.3,1.43331]
[1750378673577,0.79118,2527.4,2527.3,0.6421]
[1750378673982,0.79118,2527.4,2527.3,1.43331]
[1750378675380,0.79118,2527.4,2527.3,0.6421]
[1750378677990,0.79121,2527.3,2527.2,2.35373977]
[1750378678276,2.81211,2527.3,2527.2,2.35373977]
[1750378680178,10.31089481,2527.3,2527.2,1.51159977]
[1750378680385,10.31089481,2527.3,2526.8,0.6693]
[1750378680386,0.79124,2527.2,2527.1,1.57303865]
[1750378680581,9.02184,2527.2,2527.1,1.57303865]
[1750378680781,9.02184,2527.2,2526.7,3.2078]
[1750378680782,0.79128,2527.1,2527.0,1.17999298]
[1750378680979,4.64356481,2527.1,2527.0,1.17999298]
[1750378681179,9.64356481,2527.1,2527.0,1.17999298]
[1750378681888,0.79131,2527.0,2526.9,1.17967504]
[1750378682078,5.35261,2527.0,2526.9,1.17967504]
[1750378682279,0.79134,2526.9,2526.8,1.17967504]
[1750378682589,29.49562481,2526.9,2526.8,1.17967504]
[1750378682776,0.79137,2526.8,2526.7,1.17967504]
[1750378682981,8.39987,2526.8,2526.7,1.17967504]
[1750378686184,0.79137,2526.8,2526.7,1.17967504]
[1750378686377,7.04737,2526.8,2526.7,1.17967504]
[1750378687588,0.79137,2526.8,2526.7,1.17967504]
[1750378687884,0.7914,2526.7,2526.6,7.92842346]
[1750378688084,0.7914,2526.7,2526.6,7.02888481]
[1750378688483,0.7914,2526.7,2526.6,8.59941312]
[1750378692484,0.7914,2526.7,2526.6,6.10062831]
[1750378693992,0.7914,2526.7,2526.6,5.42712831]
[1750378694195,0.7914,2526.7,2526.6,0.6488]
[1750378699296,0.86073781,2526.7,2526.6,0.6488]
[1750378700790,0.79147,2526.5,2526.4,1.57052831]
[1750378701190,7.04747,2526.5,2526.4,1.57052831]
[1750378701394,7.72267,2526.5,2526.4,1.57052831]
[1750378704597,7.72267,2526.5,2526.3,6.19153132]
[1750378704598,0.7915,2526.4,2526.3,6.19153132]
[1750378705396,2.1074,2526.4,2526.3,6.19153132]
[1750378707403,2.1074,2526.4,2526.3,3.8369]
[1750378707606,0.7915,2526.4,2526.3,6.19618566]
[1750378708402,0.7915,2526.4,2526.3,3.8369]
[1750378708902,2.0481,2526.4,2526.3,3.8369]
[1750378709104,2.0481,2526.4,2526.3,5.56840839]
[1750378709496,2.0481,2526.4,2526.3,3.2078]
[1750378710706,0.7915,2526.4,2526.3,3.2078]
[1750378711308,0.79156,2526.2,2526.1,3.14294946]
[1750378711509,0.79156,2526.2,2526.0,3.8573]
[1750378711510,0.79159,2526.1,2526.0,7.00024946]
[1750378711911,0.79159,2526.1,2526.0,7.79186946]
[1750378712814,0.79158,2526.2,2526.1,0.79156]
[1750378715517,0.79159,2526.1,2526.0,4.64891]
[1750378715817,0.79159,2526.1,2526.0,3.8573]
[1750378716019,7.04559,2526.1,2526.0,0.6495]
[1750378716314,7.04559,2526.1,2526.0,1.44112]
[1750378716510,7.04559,2526.1,2526.0,3.0105525]
[1750378717305,7.04559,2526.1,2526.0,3.8021725]
[1750378717511,7.04558,2526.2,2526.1,0.79156]
[1750378717718,7.04558,2526.2,2526.1,3.1526125]
[1750378718220,7.04558,2526.2,2526.1,0.79156]
[1750378718519,6.254,2526.2,2526.1,0.79156]
[1750378718817,6.5059,2526.6,2526.1,1.97891]
[1750378719118,6.254,2526.3,2526.2,3.15146341]
[1750378719415,7.04553,2526.3,2526.2,4.46506341]
[1750378720423,7.04553,2526.3,2526.2,6.96384822]
[1750378720624,6.254,2526.3,2526.2,6.96384822]
[1750378720825,7.04553,2526.3,2526.2,6.96384822]
[1750378721027,7.04553,2526.3,2526.2,5.65024822]
[1750378722630,7.04553,2526.3,2526.2,3.29034481]
[1750378722828,6.254,2526.3,2526.2,3.29034481]
[1750378723526,11.04812,2527.0,2526.3,0.79153]
[1750378723821,7.04634,2526.9,2526.8,2.36461462]
[1750378724026,7.04634,2526.9,2526.8,3.15123693]
[1750378724523,3.2078,2527.0,2526.9,0.79134]
[1750378724728,9.4628,2527.0,2526.9,2.36421518]
[1750378725526,10.25411,2527.0,2526.9,2.36421518]
[1750378725728,10.25411,2527.0,2526.9,0.79134]
[1750378726021,9.4628,2527.0,2526.9,0.79134]
[1750378726429,9.4628,2527.0,2526.9,2.36325067]
[1750378726826,9.4628,2527.0,2526.9,2.36361116]
[1750378727029,0.79127,2527.2,2527.1,0.79128]
[1750378727226,0.79127,2527.2,2527.1,1.97041258]
[1750378727626,9.4618,2527.3,2527.2,0.79125]
[1750378727823,9.4618,2527.3,2527.2,3.29003481]
[1750378728027,9.4618,2527.3,2527.2,4.86221158]
[1750378728537,6.254,2527.3,2527.2,4.86221158]
[1750378729339,7.04521,2527.3,2527.2,4.86221158]
[1750378731136,7.04521,2527.3,2527.2,3.29003481]
[1750378732438,0.6217,2527.4,2527.3,0.79121]
[1750378732640,6.254,2527.8,2527.3,5.18583]
[1750378732833,7.04508,2527.8,2527.7,0.79109]
[1750378733139,0.79105,2527.9,2527.8,0.79106]
[1750378733434,56.53792,2528.0,2527.9,0.79103]
[1750378733634,0.79103,2527.9,2527.8,0.79103]
[1750378734042,0.79106,2527.8,2527.7,4.46603879]
[1750378734537,0.79105,2527.9,2527.8,0.79104]
[1750378735042,0.79106,2527.8,2527.7,3.28984481]
[1750378735340,0.79109,2527.7,2527.6,1.17618398]
[1750378735935,0.79109,2527.7,2527.6,1.96730398]
[1750378736240,0.79109,2527.7,2527.6,1.17618398]
[1750378737438,0.79112,2527.6,2527.5,4.46609879]
[1750378739342,0.79112,2527.6,2527.5,4.46611879]
[1750378739741,0.79112,2527.6,2527.5,4.36196879]
[1750378739941,0.79112,2527.6,2527.5,5.15311879]
[1750378740335,57.72442,2528.0,2527.6,0.7911]
[1750378740538,0.79106,2527.8,2527.7,2.49878481]
[1750378741031,0.79106,2527.8,2527.7,3.28987481]
[1750378741229,0.79106,2527.8,2527.7,2.49878481]
[1750378741637,0.79106,2527.8,2527.7,3.28987481]
[1750378741948,0.79105,2527.9,2527.8,0.79103]
[1750378742136,0.79105,2527.9,2527.8,1.96721398]
[1750378742340,1.97737,2528.2,2527.8,1.96721398]
[1750378742647,0.79103,2528.0,2527.9,5.28959]
[1750378742947,0.79103,2528.0,2527.9,6.46577398]
[1750378743548,0.79103,2528.0,2527.9,5.28959]
[1750378743844,0.79103,2528.0,2527.9,8.96455879]
[1750378744042,0.79103,2528.0,2527.9,7.78837481]
[1750378744240,0.79103,2528.0,2527.9,8.96455879]
[1750378744431,0.79103,2528.0,2527.9,7.78837481]
[1750378745449,0.79098,2528.1,2528.0,0.79095]
[1750378745642,0.79098,2528.1,2528.0,3.28973481]
[1750378750244,0.79098,2528.1,2528.0,4.46591879]
[1750378751551,0.79098,2528.1,2528.0,3.28973481]
[1750378752451,0.79098,2528.1,2528.0,4.86191158]
[1750378752649,0.79095,2528.2,2528.1,0.7909]
[1750378752841,0.79093,2528.3,2528.2,0.7909]
[1750378753147,0.79093,2528.3,2528.2,4.46271286]
[1750378754649,0.79093,2528.3,2528.2,7.67051286]
[1750378755248,0.79093,2528.3,2528.2,6.87961286]
[1750378755449,2.15293,2528.3,2528.2,1.17302805]
[1750378756542,0.79093,2528.2,2528.1,2.36313677]
[1750378756947,1.362,2528.3,2528.2,0.7909]
[1750378756948,0.79093,2528.3,2528.2,0.7909]
[1750378757252,0.79093,2528.3,2528.2,4.85574989]
[1750378757641,1.42438,2528.4,2528.3,0.7909]
[1750378757850,0.79085,2528.5,2528.4,0.79083]
[1750378758148,0.79085,2528.5,2528.4,4.46446014]
[1750378758550,1.42433,2528.6,2528.5,0.79084]
[1750378758947,2.77333,2528.6,2528.5,0.79084]
[1750378759549,2.77333,2528.6,2528.5,1.96568533]
[1750378759855,0.79083,2528.6,2528.5,1.96568533]
[1750378760242,0.79083,2528.6,2528.5,1.96589653]
[1750378760955,0.79077,2528.8,2528.7,0.79078]
[1750378761157,0.79077,2528.8,2528.7,1.9658547]
[1750378761750,0.79077,2528.8,2528.7,2.5870547]
[1750378762849,0.79077,2528.8,2528.7,1.1750747]
[1750378763055,0.79077,2528.8,2528.7,0.79078]
[1750378763250,0.6469,2528.9,2528.6,4.71204989]
[1750378763457,0.79071,2529.0,2528.9,0.79068]
[1750378763949,1.46477,2529.1,2529.0,0.79068]
[1750378764255,1.46477,2529.1,2529.0,1.96569993]
[1750378764456,0.79067,2529.1,2529.0,5.11168474]
[1750378764753,2.77867,2529.1,2529.0,5.11091241]
[1750378764947,2.77867,2529.1,2529.0,2.6121276]
[1750378765155,2.77867,2529.1,2529.0,1.43788]
[1750378765356,0.79068,2529.0,2528.9,1.56606508]
[1750378765653,2.14078,2529.0,2528.9,1.56606508]
[1750378767453,0.79071,2528.9,2528.8,7.14450481]
[1750378767853,0.79071,2528.9,2528.8,3.2078]
[1750378768043,0.79075,2528.8,2528.7,1.56528437]
[1750378768247,2.14085,2528.8,2528.7,1.56528437]
[1750378768454,0.79078,2528.7,2528.6,1.56528437]
[1750378768657,3.40448,2528.7,2528.6,1.56528437]
[1750378769055,0.79081,2528.6,2528.5,4.77308437]
[1750378769257,2.10581,2528.6,2528.5,4.77308437]
[1750378770562,2.10581,2528.6,2528.5,1.56528437]
[1750378771759,0.79084,2528.5,2528.4,2.35986693]
[1750378771954,2.08364,2528.5,2528.4,2.35986693]
[1750378774355,2.15297781,2528.5,2528.4,2.35986693]
[1750378776262,2.15297781,2528.5,2528.4,0.79087]
[1750378777060,0.86017781,2528.5,2528.4,0.79087]
[1750378779958,0.06933781,2528.5,2528.4,0.79087]
[1750378781560,0.86017781,2528.5,2528.4,0.79087]
[1750378781760,0.06933781,2528.5,2528.4,0.79087]
[1750378781959,0.86017781,2528.5,2528.4,0.79087]
[1750378782554,0.86017781,2528.5,2528.3,6.43262427]
[1750378782555,0.79087,2528.4,2528.3,6.43262427]
[1750378782858,0.7909,2528.3,2528.2,3.2078]
[1750378783050,1.4459,2528.3,2528.2,3.2078]
[1750378783355,0.79096,2528.1,2527.9,6.35074946]
[1750378783664,5.13108481,2528.3,2527.9,2.3540253]
[1750378783665,1.4418,2528.0,2527.9,2.3540253]
[1750378783861,2.7414,2528.0,2527.9,2.3540253]
[1750378784053,0.79103,2527.9,2527.8,2.3540253]
[1750378784357,2.77613,2527.9,2527.8,2.3540253]
[1750378788361,0.79106,2527.8,2527.7,5.64389011]
[1750378788560,0.79106,2527.8,2527.7,2.3540253]
[1750378788759,2.08856,2527.8,2527.7,2.3540253]
[1750378790059,0.79106,2527.8,2527.7,3.1451153]
[1750378790259,0.79106,2527.8,2527.7,5.64390011]
[1750378791962,0.79106,2527.8,2527.7,2.3540253]
[1750378792155,2.05476,2527.8,2527.7,2.3540253]
[1750378793862,0.79109,2527.7,2527.6,5.5618253]
[1750378794163,0.79109,2527.7,2527.6,6.3529453]
[1750378795066,0.79109,2527.7,2527.6,5.5618253]
[1750378795362,0.79109,2527.7,2527.6,6.3529453]
[1750378795765,0.79109,2527.7,2527.6,5.5618253]
[1750378796464,0.79109,2527.7,2527.6,6.3529453]
[1750378799167,0.79109,2527.7,2527.6,3.2078]
[1750378799367,0.79109,2527.7,2527.6,5.56091759]
[1750378800257,0.79109,2527.7,2527.6,4.77704341]
[1750378801256,5.79109,2527.7,2527.5,1.56924341]
[1750378801457,10.89610481,2527.6,2527.5,1.17734204]
[1750378801661,8.39732,2527.6,2527.5,1.17734204]
[1750378802567,0.79115,2527.5,2527.4,1.17734204]
[1750378802768,1.45435,2527.5,2527.4,1.17734204]
[1750378803162,2.76135,2527.5,2527.4,1.17734204]
[1750378803561,3.39355,2527.5,2527.4,1.17734204]
[1750378804568,0.79118,2527.4,2527.3,1.17734204]
[1750378805369,0.79121,2527.3,2527.2,7.27582822]
[1750378806767,0.79121,2527.3,2527.2,8.06707822]
[1750378807071,0.79121,2527.3,2527.2,6.49783481]
[1750378807465,0.79121,2527.3,2527.2,4.77640648]
[1750378807664,0.79121,2527.3,2527.2,5.56765648]
[1750378807969,0.79121,2527.3,2527.2,4.77640648]
[1750378808168,0.79121,2527.3,2527.2,3.2078]
[1750378808371,5.80188481,2527.4,2527.0,2.35311759]
[1750378808667,1.46415,2527.2,2527.1,1.56896476]
[1750378809173,2.78925,2527.2,2527.1,1.56896476]
[1750378809472,0.79128,2527.1,2527.0,2.35311759]
[1750378819176,12.77646481,2527.1,2527.0,1.57089298]
[1750378819378,0.79134,2526.9,2526.8,0.3664997]
[1750378819683,0.7915,2526.4,2526.3,1.57089298]
[1750378819972,0.7915,2526.4,2525.9,3.45632652]
[1750378819973,1.97884,2526.3,2525.9,1.57089298]
[1750378820179,0.79162,2526.0,2525.9,1.57089298]
[1750378820379,7.03662,2526.0,2525.9,1.57089298]
[1750378820782,0.79165,2525.9,2525.8,4.77869298]
[1750378820973,0.79165,2525.9,2525.8,3.2078]
[1750378821878,0.79165,2525.9,2525.8,4.77704774]
[1750378822274,0.79168,2525.8,2525.7,1.56924774]
[1750378822469,0.79168,2525.8,2525.7,2.22314774]
[1750378823778,0.79168,2525.8,2525.7,0.6539]
[1750378826086,0.79175,2525.6,2525.5,4.77704774]
[1750378826375,0.79175,2525.6,2525.5,5.56882774]
[1750378826977,0.79175,2525.6,2525.5,4.77704774]
[1750378827184,0.79175,2525.6,2525.5,3.99958]
[1750378828880,0.79175,2525.6,2525.5,3.2078]
[1750378829378,8.22641,2525.6,2525.2,3.2078]
[1750378829577,0.79184,2525.3,2525.2,3.2078]
[1750378832188,0.7919,2525.1,2525.0,0.6513]
[1750378834088,0.7919,2525.1,2525.0,1.44323]
[1750378834284,7.03789,2525.2,2525.1,0.79188]
[1750378834490,7.03789,2525.2,2525.1,3.29066481]
[1750378834691,7.03789,2525.2,2525.1,0.79188]
[1750378834989,0.7919,2525.1,2525.0,1.44321]
[1750378835988,7.03789,2525.2,2525.1,0.7919]
[1750378837583,6.246,2525.3,2525.2,0.79187]
[1750378837790,6.246,2525.3,2525.2,3.29065481]
[1750378837982,7.03784,2525.3,2525.2,3.29065481]
[1750378838587,3.2078,2526.0,2525.2,9.06803255]
[1750378838786,0.79168,2525.9,2525.8,3.29043481]
[1750378839093,0.79168,2525.9,2525.8,0.79165]
[1750378839293,0.79168,2525.8,2525.7,1.45089]
[1750378839587,0.79168,2525.9,2525.8,0.79165]
[1750378839990,0.79168,2525.9,2525.7,0.6592]
[1750378839991,0.79162,2526.0,2525.9,0.79165]
[1750378840178,7.0376,2526.1,2526.0,0.79162]
[1750378841398,6.246,2526.1,2526.0,0.79162]
[1750378841984,7.03759,2526.1,2526.0,0.79162]
[1750378842786,6.246,2526.1,2526.0,0.79162]
[1750378843586,7.03753,2526.3,2526.2,0.79156]
[1750378843892,0.79153,2526.3,2526.2,0.79156]
[1750378844095,7.03753,2526.3,2526.2,0.79156]
[1750378844886,0.79153,2526.3,2526.2,0.79156]
[1750378845089,7.03753,2526.3,2526.2,0.79156]
[1750378845392,6.246,2526.3,2526.2,0.79156]
[1750378845594,7.03753,2526.3,2526.2,0.79156]
[1750378845988,6.246,2526.3,2526.2,0.79156]
[1750378846792,3.2078,2527.5,2526.2,4.06803255]
[1750378846986,0.624,2527.2,2527.1,0.79128]
[1750378847185,1.3287,2527.3,2527.2,0.79124]
[1750378847390,6.9328,2527.4,2527.3,0.79121]
[1750378847895,7.724,2527.4,2527.3,0.79121]
[1750378848093,6.9328,2527.4,2527.3,0.79121]
[1750378848801,7.72398,2527.4,2527.3,0.79121]
[1750378849002,0.79125,2527.3,2527.2,0.79123]
[1750378849298,0.79128,2527.2,2527.1,0.79126]
[1750378849697,0.79128,2527.1,2527.0,4.65209]
[1750378850698,0.79127,2527.2,2527.1,0.79126]
[1750378853600,1.299,2527.3,2527.2,0.79125]
[1750378853809,0.79111,2527.7,2527.6,0.7911]
[1750378854003,3.99888,2527.8,2527.5,2.49878481]
[1750378854200,0.7911,2527.7,2527.6,1.4534]
[1750378854507,0.791,2528.0,2527.9,0.791]
[1750378854806,0.791,2528.0,2527.9,3.2078]
[1750378855595,1.9776,2527.9,2527.6,3.2078]
[1750378855800,0.79109,2527.7,2527.6,3.2078]
[1750378858493,3.28987481,2527.7,2527.6,3.2078]
[1750378859002,0.79118,2527.4,2527.3,3.2078]
[1750378859597,2.67218,2527.4,2527.3,3.2078]
[1750378861304,2.67218,2527.4,2527.3,3.99901]
[1750378861906,2.67218,2527.4,2527.3,3.2078]
[1750378862103,2.67218,2527.4,2527.3,3.99901]
[1750378862302,1.42708,2527.4,2527.3,3.99901]
[1750378863004,0.79118,2527.4,2527.3,3.2078]
[1750378864811,0.86051781,2527.4,2527.3,3.2078]
[1750378865809,0.79128,2527.1,2527.0,3.2078]
[1750378867208,2.10228,2527.1,2527.0,3.2078]
[1750378869709,0.79137,2526.8,2526.7,4.77258704]
[1750378870110,0.79137,2526.8,2526.7,5.56398704]
[1750378870306,0.79137,2526.8,2526.7,4.77258704]
[1750378872109,0.79133,2527.0,2526.9,0.79131]
[1750378872507,0.6589,2527.3,2526.8,6.77495152]
[1750378872814,0.6589,2527.3,2527.0,3.99909]
[1750378872815,0.79128,2527.1,2527.0,3.99909]
[1750378873211,0.79127,2527.2,2527.1,0.79125]
[1750378873412,0.79128,2527.1,2527.0,3.8727]
[1750378874813,0.79128,2527.1,2527.0,5.43748704]
[1750378875116,0.79128,2527.1,2527.0,6.22879704]
[1750378875717,0.79128,2527.1,2527.0,3.8727]
[1750378876117,0.79128,2527.1,2527.0,4.66401]
[1750378876816,0.79128,2527.1,2527.0,7.00855283]
[1750378878217,0.79128,2527.1,2527.0,6.21724283]
[1750378880221,0.79128,2527.1,2527.0,7.00855283]
[1750378882824,0.79128,2527.1,2527.0,9.51387349]
[1750378884024,0.86061781,2527.1,2527.0,9.51387349]
[1750378884633,0.86061781,2527.1,2527.0,6.21724283]
[1750378884832,0.86061781,2527.1,2527.0,4.66401]
[1750378885133,0.79128,2527.1,2527.0,4.66401]
[1750378885334,0.79128,2527.1,2527.0,3.8727]
[1750378885535,0.79128,2527.1,2527.0,6.22780477]
[1750378885736,0.79128,2527.1,2527.0,3.8727]
[1750378886635,0.79128,2527.1,2527.0,4.66401]
[1750378887235,0.79128,2527.1,2527.0,3.8727]
[1750378888936,0.79128,2527.1,2527.0,4.66401]
[1750378889839,0.79127,2527.2,2527.1,0.79124]
[1750378890041,1.97798,2527.4,2527.0,6.37802066]
[1750378890233,0.79128,2527.2,2527.1,0.79124]
[1750378891442,0.79122,2527.4,2527.3,0.79119]
[1750378891632,0.79122,2527.4,2527.3,3.99899]
[1750378893336,0.79111,2527.7,2527.6,0.79109]
[1750378893641,0.79109,2527.7,2527.6,5.56475114]
[1750378893842,0.79109,2527.7,2527.6,5.56469369]
[1750378894242,0.79109,2527.7,2527.6,6.35581369]
[1750378894648,0.79109,2527.7,2527.6,6.35532714]
[1750378894848,0.79109,2527.7,2527.6,5.56420714]
[1750378896748,0.79109,2527.7,2527.6,6.35532714]
[1750378897149,0.79107,2527.8,2527.7,0.79106]
[1750378897444,0.79107,2527.8,2527.7,2.36127157]
[1750378897646,0.79107,2527.8,2527.7,1.57021157]
[1750378900445,2.12527,2527.8,2527.7,1.57021157]
[1750378900644,2.12527,2527.8,2527.6,1.57021157]
[1750378900645,0.79109,2527.7,2527.6,1.57021157]
[1750378900850,0.79118,2527.4,2527.3,5.56420714]
[1750378901151,0.79118,2527.4,2527.3,3.2078]
[1750378901651,2.12538,2527.4,2527.3,3.2078]
[1750378902048,0.79128,2527.1,2527.0,5.56420714]
[1750378905447,3.29660066,2527.1,2527.0,5.56420714]
[1750378905652,2.50532066,2527.1,2526.8,2.35640714]
[1750378905951,3.29666066,2526.9,2526.8,2.35640714]
[1750378906450,4.62496066,2526.9,2526.8,2.35640714]
[1750378907246,0.79137,2526.8,2526.7,5.56420714]
[1750378907454,2.11967,2526.8,2526.7,3.2078]
[1750378907753,7.11967,2526.8,2526.7,3.2078]
[1750378908455,0.79146,2526.5,2526.4,3.2078]
[1750378908751,0.79149,2526.4,2526.3,2.35640714]
[1750378908948,0.79153,2526.3,2526.2,2.35640714]
[1750378909455,0.79156,2526.2,2526.1,5.56420714]
[1750378911452,0.79156,2526.2,2526.1,3.2078]
[1750378914850,3.29688066,2526.2,2526.1,3.2078]
[1750378915048,0.79162,2526.0,2525.9,0.639]
[1750378915755,0.79162,2526.0,2525.9,1.43065]
[1750378915960,0.79162,2526.0,2525.9,0.639]
[1750378916650,0.79162,2526.0,2525.9,1.43065]
[1750378917168,6.305,2526.1,2526.0,0.79159]
[1750378917358,3.77662066,2526.4,2525.9,5.12342066]
[1750378917550,7.09757,2526.2,2526.1,0.79159]
[1750378917749,0.79161,2526.1,2526.0,0.7916]
[1750378917960,0.79161,2526.1,2525.9,3.14432066]
[1750378917961,7.09756,2526.2,2526.1,0.79159]
[1750378918154,7.09756,2526.2,2526.1,3.99939]
[1750378919356,6.306,2526.2,2526.1,3.99939]
[1750378920561,6.306,2526.6,2526.2,1.97888]
[1750378920750,6.306,2526.6,2526.5,0.79146]
[1750378920947,7.09743,2526.6,2526.5,0.79146]
[1750378921254,9.5138,2526.9,2526.5,4.48395066]
[1750378921457,3.2078,2527.2,2527.0,0.79129]
[1750378921655,0.79129,2527.1,2527.0,0.79129]
[1750378923660,0.79131,2527.0,2526.9,0.79131]
[1750378924058,0.79137,2526.8,2526.7,3.2078]
[1750378924260,3.29669066,2526.8,2526.7,3.2078]
[1750378924763,0.79137,2526.8,2526.7,3.2078]
[1750378925657,1.47837,2526.9,2526.7,3.2078]
[1750378925856,1.47836,2526.9,2526.7,3.2078]
[1750378926056,0.687,2526.9,2526.8,0.79137]
[1750378926261,0.687,2526.9,2526.7,3.2078]
[1750378926463,1.8778,2527.1,2526.8,0.79137]
[1750378927055,0.79135,2526.9,2526.7,3.99918]
[1750378927366,0.79137,2526.8,2526.7,3.2078]
[1750378927568,0.79137,2526.8,2526.7,3.9992]
[1750378927867,6.286,2527.0,2526.7,3.2078]
[1750378928162,7.07733,2527.0,2526.9,0.79134]
[1750378928353,0.79135,2526.9,2526.8,0.79135]
[1750378928561,0.79137,2526.8,2526.7,3.99919]
[1750378929263,0.79137,2526.8,2526.7,3.2078]
[1750378930768,0.79137,2526.8,2526.7,4.77685053]
[1750378934568,0.79136,2526.9,2526.8,0.79134]
[1750378934775,0.79136,2526.9,2526.8,3.01331278]
[1750378936363,0.79136,2526.9,2526.8,2.22197278]
[1750378937271,0.79136,2526.9,2526.8,3.01334278]
[1750378938471,0.79136,2526.9,2526.8,2.22197278]
[1750378941876,0.79136,2526.9,2526.8,1.57027278]
[1750378942173,3.29668066,2526.9,2526.8,1.57027278]
[1750378942363,3.91858066,2526.9,2526.8,1.57027278]
[1750378942675,5.24228066,2526.9,2526.8,1.57027278]
[1750378943773,5.31161847,2526.9,2526.8,1.57027278]
[1750378946478,0.79137,2526.8,2526.7,5.56420714]
[1750378946771,2.06387,2526.8,2526.7,5.56420714]
[1750378947575,2.06387,2526.8,2526.7,3.2078]
[1750378948970,0.79137,2526.8,2526.7,3.2078]
[1750378949580,0.79137,2526.8,2526.7,6.35100398]
[1750378949772,0.79137,2526.8,2526.7,3.2078]
[1750378950480,0.79137,2526.8,2526.7,3.9992]
[1750378950679,0.79137,2526.8,2526.7,3.2078]
[1750378952275,1.41326,2526.9,2526.8,0.79137]
[1750378952578,0.79137,2526.8,2526.7,7.14238398]
[1750378952770,0.79137,2526.8,2526.7,3.99918]
[1750378953978,0.79137,2526.8,2526.7,3.2078]
[1750378955980,0.86070781,2526.8,2526.7,3.2078]
[1750378956875,0.86070781,2526.8,2526.7,3.9992]
[1750378957079,0.79137,2526.8,2526.7,3.2078]
[1750378957984,1.9783,2527.0,2526.7,6.35100398]
[1750378958282,0.79131,2527.0,2526.9,2.3652324]
[1750378958582,2.10631,2527.0,2526.9,2.3652324]
[1750378964786,0.79131,2527.0,2526.9,2.3652324]
[1750378964978,0.79137,2526.8,2526.7,6.35100398]